[Event "January 2 Early 2024"]
[Site "https://www.chess.com"]
[Date "2024.01.02"]
[Round "6"]
[White "Tan, Jun Ying"]
[Black "Cueto, Jonny"]
[Result "1-0"]
[Board "174"]
[TimeControl "180+1"]
[WhiteFideId "5710413"]
[BlackFideId "3300145"]
[WhiteElo "2659"]
[BlackElo "2249"]
[WhiteTeam "MAS"]
[BlackTeam "BOL"]
[WhiteClock "0:00:47"]
[BlackClock "0:00:00"]

1. d4 {[%clk 0:03:00]}  Nf6 {[%clk 0:02:59]} 2. c4 {[%clk 0:03:01]}  d6 {[%clk 0:03:00]} 3. Nf3 {[%clk 0:02:58]}  g6 {[%clk 0:03:00]} 4. Nc3 {[%clk 0:02:58]}  Bf5 {[%clk 0:03:00]} 5. Nh4 {[%clk 0:02:52]}  Bd7 {[%clk 0:02:59]} 6. g3 {[%clk 0:02:48]}  e5 {[%clk 0:02:55]} 7. d5 {[%clk 0:02:43]}  Bg7 {[%clk 0:02:50]} 8. Bg2 {[%clk 0:02:44]}  O-O {[%clk 0:02:51]} 9. O-O {[%clk 0:02:44]}  a5 {[%clk 0:02:50]} 10. e4 {[%clk 0:02:38]}  Na6 {[%clk 0:02:47]} 11. Bg5 {[%clk 0:02:34]}  h6 {[%clk 0:02:35]} 12. Bd2 {[%clk 0:02:35]}  Nc5 {[%clk 0:02:28]} 13. Qc2 {[%clk 0:02:34]}  Kh7 {[%clk 0:02:01]} 14. h3 {[%clk 0:02:32]}  Nh5 {[%clk 0:01:53]} 15. Kh2 {[%clk 0:02:30]}  a4 {[%clk 0:01:53]} 16. Bf3 {[%clk 0:02:23]}  a3 {[%clk 0:01:44]} 17. b4 {[%clk 0:02:18]}  Na4 {[%clk 0:01:44]} 18. Bxh5 {[%clk 0:02:05]}  gxh5 {[%clk 0:01:36]} 19. Nxa4 {[%clk 0:02:00]}  Bxa4 {[%clk 0:01:27]} 20. Qd3 {[%clk 0:01:59]}  Be8 {[%clk 0:01:04]} 21. Nf5 {[%clk 0:01:57]}  Qf6 {[%clk 0:00:58]} 22. Qf3 {[%clk 0:01:51]}  Qg6 {[%clk 0:00:25]} 23. Nh4 {[%clk 0:01:49]}  Qf6 {[%clk 0:00:22]} 24. Qxh5 {[%clk 0:01:49]}  Bd7 {[%clk 0:00:20]} 25. Rac1 {[%clk 0:01:21]}  Rh8 {[%clk 0:00:16]} 26. Rc3 {[%clk 0:01:16]}  Kg8 {[%clk 0:00:09]} 27. Rf3 {[%clk 0:01:15]}  Qe7 {[%clk 0:00:06]} 28. Nf5 {[%clk 0:01:14]}  Bxf5 {[%clk 0:00:07]} 29. Rxf5 {[%clk 0:01:08]}  f6 {[%clk 0:00:07]} 30. Rc1 {[%clk 0:01:00]}  Qe8 {[%clk 0:00:05]} 31. Qxe8+ {[%clk 0:00:58]}  Rxe8 {[%clk 0:00:06]} 32. Rc3 {[%clk 0:00:58]}  Ra8 {[%clk 0:00:04]} 33. Rff3 {[%clk 0:00:58]}  Ra4 {[%clk 0:00:03]} 34. Rxa3 {[%clk 0:00:58]}  Rxa3 {[%clk 0:00:03]} 35. Rxa3 {[%clk 0:00:59]}  Kf7 {[%clk 0:00:03]} 36. Ra7 {[%clk 0:00:59]}  Rb8 {[%clk 0:00:03]} 37. a4 {[%clk 0:00:51]}  Kg6 {[%clk 0:00:04]} 38. g4 {[%clk 0:00:50]}  h5 {[%clk 0:00:03]} 39. Kg3 {[%clk 0:00:49]}  Bf8 {[%clk 0:00:00]} 40. a5 {[%clk 0:00:47]} 1-0

[Event "January 2 Early 2024"]
[Site "https://www.chess.com"]
[Date "2024.01.02"]
[Round "6"]
[White "RobertDowneyJr0111"]
[Black "Chirivi C, Jenny Astrid"]
[Result "1-0"]
[Board "175"]
[TimeControl "180+1"]
[BlackFideId "4403061"]
[WhiteElo "2635"]
[BlackElo "2233"]
[BlackTeam "COL"]
[WhiteClock "0:00:11"]
[BlackClock "0:00:00"]

1. c4 {[%clk 0:03:00]}  Nf6 {[%clk 0:02:58]} 2. Nf3 {[%clk 0:02:58]}  e6 {[%clk 0:02:56]} 3. e3 {[%clk 0:02:58]}  d5 {[%clk 0:02:56]} 4. b3 {[%clk 0:02:58]}  Be7 {[%clk 0:02:56]} 5. Bb2 {[%clk 0:02:58]}  O-O {[%clk 0:02:55]} 6. Be2 {[%clk 0:02:59]}  c5 {[%clk 0:02:55]} 7. cxd5 {[%clk 0:02:58]}  Nxd5 {[%clk 0:02:54]} 8. d4 {[%clk 0:02:59]}  cxd4 {[%clk 0:02:53]} 9. Nxd4 {[%clk 0:02:56]}  Bd7 {[%clk 0:02:50]} 10. O-O {[%clk 0:02:56]}  Nc6 {[%clk 0:02:50]} 11. Nc3 {[%clk 0:02:53]}  Nxd4 {[%clk 0:02:50]} 12. Qxd4 {[%clk 0:02:53]}  Bf6 {[%clk 0:02:47]} 13. Qd2 {[%clk 0:02:53]}  Bc6 {[%clk 0:02:44]} 14. Nxd5 {[%clk 0:02:51]}  Bxd5 {[%clk 0:02:43]} 15. Rfd1 {[%clk 0:02:28]}  Qe7 {[%clk 0:02:34]} 16. Rac1 {[%clk 0:02:15]}  Bxb2 {[%clk 0:02:33]} 17. Qxb2 {[%clk 0:02:16]}  Rac8 {[%clk 0:02:32]} 18. h3 {[%clk 0:02:05]}  Qg5 {[%clk 0:02:27]} 19. Bf1 {[%clk 0:02:06]}  h6 {[%clk 0:02:11]} 20. Qd4 {[%clk 0:02:03]}  b6 {[%clk 0:02:06]} 21. Qa4 {[%clk 0:01:57]}  Qe7 {[%clk 0:02:03]} 22. Ba6 {[%clk 0:01:48]}  Rc5 {[%clk 0:01:50]} 23. Qa3 {[%clk 0:00:57]}  Rxc1 {[%clk 0:01:38]} 24. Qxc1 {[%clk 0:00:40]}  Qg5 {[%clk 0:01:36]} 25. Bf1 {[%clk 0:00:38]}  Qe7 {[%clk 0:01:34]} 26. Qc3 {[%clk 0:00:30]}  Qb7 {[%clk 0:01:32]} 27. Rc1 {[%clk 0:00:30]}  Rd8 {[%clk 0:01:26]} 28. Qc7 {[%clk 0:00:28]}  Rd7 {[%clk 0:01:17]} 29. Qxb7 {[%clk 0:00:24]}  Bxb7 {[%clk 0:01:15]} 30. Bb5 {[%clk 0:00:20]}  Re7 {[%clk 0:01:03]} 31. f3 {[%clk 0:00:21]}  a6 {[%clk 0:00:56]} 32. Be2 {[%clk 0:00:21]}  b5 {[%clk 0:00:54]} 33. Kf2 {[%clk 0:00:20]}  Rd7 {[%clk 0:00:54]} 34. Rc2 {[%clk 0:00:20]}  Kf8 {[%clk 0:00:54]} 35. e4 {[%clk 0:00:21]}  Ke7 {[%clk 0:00:54]} 36. Ke3 {[%clk 0:00:21]}  e5 {[%clk 0:00:54]} 37. g3 {[%clk 0:00:21]}  f6 {[%clk 0:00:53]} 38. h4 {[%clk 0:00:22]}  Kd6 {[%clk 0:00:50]} 39. a4 {[%clk 0:00:21]}  bxa4 {[%clk 0:00:49]} 40. bxa4 {[%clk 0:00:22]}  a5 {[%clk 0:00:48]} 41. Rb2 {[%clk 0:00:17]}  Bc6 {[%clk 0:00:46]} 42. Bb5 {[%clk 0:00:17]}  Bxb5 {[%clk 0:00:22]} 43. Rxb5 {[%clk 0:00:18]}  Ra7 {[%clk 0:00:22]} 44. h5 {[%clk 0:00:19]}  Kc6 {[%clk 0:00:19]} 45. f4 {[%clk 0:00:19]}  exf4+ {[%clk 0:00:18]} 46. gxf4 {[%clk 0:00:20]}  Ra8 {[%clk 0:00:16]} 47. Kf3 {[%clk 0:00:20]}  Ra7 {[%clk 0:00:16]} 48. Kg4 {[%clk 0:00:20]}  Re7 {[%clk 0:00:14]} 49. Kf5 {[%clk 0:00:20]}  Ra7 {[%clk 0:00:13]} 50. e5 {[%clk 0:00:21]}  fxe5 {[%clk 0:00:12]} 51. fxe5 {[%clk 0:00:21]}  Rf7+ {[%clk 0:00:12]} 52. Kg6 {[%clk 0:00:21]}  Re7 {[%clk 0:00:08]} 53. Rxa5 {[%clk 0:00:20]}  Kb6 {[%clk 0:00:08]} 54. Rb5+ {[%clk 0:00:20]}  Kc6 {[%clk 0:00:07]} 55. Kf5 {[%clk 0:00:20]}  Rf7+ {[%clk 0:00:07]} 56. Ke4 {[%clk 0:00:20]}  Re7 {[%clk 0:00:06]} 57. Rd5 {[%clk 0:00:19]}  Kb6 {[%clk 0:00:05]} 58. Kd4 {[%clk 0:00:17]}  Rf7 {[%clk 0:00:04]} 59. a5+ {[%clk 0:00:17]}  Ka6 {[%clk 0:00:04]} 60. e6 {[%clk 0:00:17]}  Re7 {[%clk 0:00:02]} 61. Ke5 {[%clk 0:00:17]}  Re8 {[%clk 0:00:01]} 62. Kf5 {[%clk 0:00:13]}  Rf8+ {[%clk 0:00:02]} 63. Ke5 {[%clk 0:00:13]}  Re8 {[%clk 0:00:01]} 64. Kd6 {[%clk 0:00:11]}  Rd8+ {[%clk 0:00:01]} 65. Kc6 {[%clk 0:00:11]}  Re8 {[%clk 0:00:00]} 66. Kd7 {[%clk 0:00:11]} 1-0

[Event "January 2 Early 2024"]
[Site "https://www.chess.com"]
[Date "2024.01.02"]
[Round "6"]
[White "RaugintaBulba"]
[Black "Franchini, Gabriele"]
[Result "1-0"]
[Board "177"]
[TimeControl "180+1"]
[BlackFideId "806790"]
[WhiteElo "2536"]
[BlackElo "2203"]
[BlackTeam "ITA"]
[WhiteClock "0:00:08"]
[BlackClock "0:00:00"]

1. d4 {[%clk 0:03:00]}  d5 {[%clk 0:03:00]} 2. c4 {[%clk 0:03:00]}  e6 {[%clk 0:03:00]} 3. Nf3 {[%clk 0:03:00]}  Nf6 {[%clk 0:03:01]} 4. g3 {[%clk 0:03:01]}  Bb4+ {[%clk 0:03:00]} 5. Bd2 {[%clk 0:03:00]}  Be7 {[%clk 0:03:01]} 6. Bg2 {[%clk 0:03:00]}  O-O {[%clk 0:03:01]} 7. O-O {[%clk 0:03:01]}  c6 {[%clk 0:03:02]} 8. Qc2 {[%clk 0:03:01]}  Nbd7 {[%clk 0:03:02]} 9. Rd1 {[%clk 0:02:56]}  Ne4 {[%clk 0:03:03]} 10. Bf4 {[%clk 0:02:54]}  g5 {[%clk 0:03:02]} 11. Bc1 {[%clk 0:02:50]}  f5 {[%clk 0:03:03]} 12. Ne5 {[%clk 0:02:47]}  Nxe5 {[%clk 0:03:00]} 13. dxe5 {[%clk 0:02:47]}  Bc5 {[%clk 0:02:50]} 14. e3 {[%clk 0:02:45]}  Qe7 {[%clk 0:02:40]} 15. Nc3 {[%clk 0:02:26]}  g4 {[%clk 0:02:24]} 16. cxd5 {[%clk 0:02:20]}  exd5 {[%clk 0:02:20]} 17. b3 {[%clk 0:02:10]}  h5 {[%clk 0:02:05]} 18. Bb2 {[%clk 0:02:04]}  Bb6 {[%clk 0:02:05]} 19. a4 {[%clk 0:01:51]}  a5 {[%clk 0:02:02]} 20. Ba3 {[%clk 0:01:52]}  Bc5 {[%clk 0:01:57]} 21. Nxe4 {[%clk 0:01:52]}  Bxa3 {[%clk 0:01:53]} 22. Nf6+ {[%clk 0:01:52]}  Kh8 {[%clk 0:01:45]} 23. Nxh5 {[%clk 0:01:48]}  Bb4 {[%clk 0:01:40]} 24. Nf4 {[%clk 0:01:47]}  Kh7 {[%clk 0:01:30]} 25. h3 {[%clk 0:01:28]}  Kg7 {[%clk 0:01:08]} 26. hxg4 {[%clk 0:01:26]}  fxg4 {[%clk 0:01:05]} 27. Qg6+ {[%clk 0:01:24]}  Kh8 {[%clk 0:01:05]} 28. Qh6+ {[%clk 0:01:25]}  Kg8 {[%clk 0:01:04]} 29. Ng6 {[%clk 0:00:37]}  Qg7 {[%clk 0:01:05]} 30. Qxg7+ {[%clk 0:00:37]}  Kxg7 {[%clk 0:01:05]} 31. Nxf8 {[%clk 0:00:37]}  Kxf8 {[%clk 0:01:06]} 32. e4 {[%clk 0:00:37]}  d4 {[%clk 0:00:59]} 33. Rac1 {[%clk 0:00:29]}  Bc3 {[%clk 0:00:54]} 34. f4 {[%clk 0:00:18]}  Be6 {[%clk 0:00:53]} 35. Rb1 {[%clk 0:00:16]}  b5 {[%clk 0:00:41]} 36. f5 {[%clk 0:00:16]}  Bd7 {[%clk 0:00:37]} 37. e6 {[%clk 0:00:16]}  Be8 {[%clk 0:00:37]} 38. e5 {[%clk 0:00:16]}  Ke7 {[%clk 0:00:17]} 39. axb5 {[%clk 0:00:11]}  Rc8 {[%clk 0:00:17]} 40. bxc6 {[%clk 0:00:11]}  Bxc6 {[%clk 0:00:18]} 41. Bxc6 {[%clk 0:00:11]}  Rxc6 {[%clk 0:00:19]} 42. Rbc1 {[%clk 0:00:10]}  Rb6 {[%clk 0:00:19]} 43. Rb1 {[%clk 0:00:10]}  Rb4 {[%clk 0:00:19]} 44. Rf1 {[%clk 0:00:08]}  Rb8 {[%clk 0:00:17]} 45. Kf2 {[%clk 0:00:04]}  Rb5 {[%clk 0:00:16]} 46. Ke2 {[%clk 0:00:03]}  Rxe5+ {[%clk 0:00:16]} 47. Kd3 {[%clk 0:00:04]}  Rc5 {[%clk 0:00:14]} 48. Ke4 {[%clk 0:00:03]}  Rc8 {[%clk 0:00:12]} 49. Rh1 {[%clk 0:00:02]}  Kd6 {[%clk 0:00:10]} 50. Rh7 {[%clk 0:00:03]}  Re8 {[%clk 0:00:06]} 51. Rd7+ {[%clk 0:00:03]}  Kc6 {[%clk 0:00:07]} 52. Rd1 {[%clk 0:00:02]}  Kc5 {[%clk 0:00:06]} 53. Rd5+ {[%clk 0:00:02]}  Kb4 {[%clk 0:00:06]} 54. f6 {[%clk 0:00:01]}  Rxe6+ {[%clk 0:00:05]} 55. Kf5 {[%clk 0:00:02]}  Re8 {[%clk 0:00:04]} 56. f7 {[%clk 0:00:02]}  Rf8 {[%clk 0:00:04]} 57. Kf6 {[%clk 0:00:03]}  d3+ {[%clk 0:00:04]} 58. Ke7 {[%clk 0:00:03]}  Rh8 {[%clk 0:00:02]} 59. f8=Q {[%clk 0:00:03]}  Rxf8 {[%clk 0:00:02]} 60. Kxf8 {[%clk 0:00:04]}  d2 {[%clk 0:00:03]} 61. R5xd2 {[%clk 0:00:04]}  Bxd2 {[%clk 0:00:03]} 62. Rxd2 {[%clk 0:00:05]}  Kxb3 {[%clk 0:00:04]} 63. Rd4 {[%clk 0:00:05]}  a4 {[%clk 0:00:03]} 64. Rxg4 {[%clk 0:00:05]}  a3 {[%clk 0:00:04]} 65. Rg7 {[%clk 0:00:06]}  a2 {[%clk 0:00:04]} 66. Ra7 {[%clk 0:00:07]}  Kb2 {[%clk 0:00:00]} 67. g4 {[%clk 0:00:08]} 1-0

[Event "January 2 Early 2024"]
[Site "https://www.chess.com"]
[Date "2024.01.02"]
[Round "6"]
[White "Khamdamova, Afruza"]
[Black "Gottstein, Claudius-Thomas"]
[Result "1-0"]
[Board "178"]
[TimeControl "180+1"]
[WhiteFideId "14210444"]
[BlackFideId "4653327"]
[WhiteElo "2533"]
[BlackElo "2202"]
[WhiteTeam "UZB"]
[BlackTeam "GER"]
[WhiteClock "0:00:30"]
[BlackClock "0:00:37"]

1. e4 {[%clk 0:03:00]}  Nf6 {[%clk 0:02:58]} 2. e5 {[%clk 0:03:00]}  Nd5 {[%clk 0:02:58]} 3. d4 {[%clk 0:03:00]}  d6 {[%clk 0:02:58]} 4. Nf3 {[%clk 0:03:00]}  Bg4 {[%clk 0:02:54]} 5. c4 {[%clk 0:02:46]}  Nb6 {[%clk 0:02:50]} 6. exd6 {[%clk 0:02:44]}  cxd6 {[%clk 0:02:50]} 7. h3 {[%clk 0:02:44]}  Bxf3 {[%clk 0:02:44]} 8. Qxf3 {[%clk 0:02:43]}  Nc6 {[%clk 0:02:45]} 9. Be3 {[%clk 0:02:38]}  g6 {[%clk 0:02:45]} 10. Nc3 {[%clk 0:02:35]}  Bg7 {[%clk 0:02:45]} 11. Rd1 {[%clk 0:02:33]}  O-O {[%clk 0:02:37]} 12. Be2 {[%clk 0:02:31]}  e5 {[%clk 0:02:28]} 13. d5 {[%clk 0:01:59]}  Nd4 {[%clk 0:02:03]} 14. Bxd4 {[%clk 0:01:59]}  exd4 {[%clk 0:02:04]} 15. Ne4 {[%clk 0:01:55]}  Qe7 {[%clk 0:01:59]} 16. O-O {[%clk 0:01:51]}  f5 {[%clk 0:01:49]} 17. Nd2 {[%clk 0:01:43]}  Rac8 {[%clk 0:01:43]} 18. b3 {[%clk 0:01:40]}  Qh4 {[%clk 0:01:34]} 19. Rfe1 {[%clk 0:01:30]}  Nd7 {[%clk 0:01:33]} 20. Bf1 {[%clk 0:01:23]}  Ne5 {[%clk 0:01:30]} 21. Qg3 {[%clk 0:01:21]}  Qxg3 {[%clk 0:01:24]} 22. fxg3 {[%clk 0:01:21]}  Rfe8 {[%clk 0:01:19]} 23. Nf3 {[%clk 0:01:14]}  Nxf3+ {[%clk 0:01:17]} 24. gxf3 {[%clk 0:01:14]}  Kf7 {[%clk 0:01:15]} 25. f4 {[%clk 0:01:08]}  Re4 {[%clk 0:01:10]} 26. Bd3 {[%clk 0:01:06]}  Rxe1+ {[%clk 0:01:09]} 27. Rxe1 {[%clk 0:01:06]}  Re8 {[%clk 0:01:10]} 28. Kf2 {[%clk 0:01:05]}  Rxe1 {[%clk 0:01:08]} 29. Kxe1 {[%clk 0:01:05]}  Ke7 {[%clk 0:01:02]} 30. Kd2 {[%clk 0:01:05]}  Kd7 {[%clk 0:01:02]} 31. b4 {[%clk 0:00:57]}  Kc7 {[%clk 0:00:57]} 32. g4 {[%clk 0:00:40]}  fxg4 {[%clk 0:00:55]} 33. hxg4 {[%clk 0:00:39]}  h5 {[%clk 0:00:55]} 34. g5 {[%clk 0:00:38]}  h4 {[%clk 0:00:46]} 35. Bxg6 {[%clk 0:00:37]}  h3 {[%clk 0:00:45]} 36. Be4 {[%clk 0:00:37]}  Kb6 {[%clk 0:00:44]} 37. f5 {[%clk 0:00:36]}  a5 {[%clk 0:00:43]} 38. f6 {[%clk 0:00:35]}  Bf8 {[%clk 0:00:43]} 39. g6 {[%clk 0:00:33]}  Bh6+ {[%clk 0:00:43]} 40. Kd3 {[%clk 0:00:32]}  Bg5 {[%clk 0:00:43]} 41. g7 {[%clk 0:00:31]}  axb4 {[%clk 0:00:37]} 42. g8=Q {[%clk 0:00:30]} 1-0

[Event "January 2 Early 2024"]
[Site "https://www.chess.com"]
[Date "2024.01.02"]
[Round "6"]
[White "Dargan, Paul A G"]
[Black "Ezat, Mohamed"]
[Result "1-0"]
[Board "179"]
[TimeControl "180+1"]
[WhiteFideId "416762"]
[BlackFideId "10600906"]
[WhiteElo "2179"]
[BlackElo "2520"]
[WhiteTeam "ENG"]
[BlackTeam "EGY"]
[WhiteClock "0:00:16"]
[BlackClock "0:00:01"]

1. e4 {[%clk 0:02:57]}  e5 {[%clk 0:01:47]} 2. Nf3 {[%clk 0:02:55]}  Nc6 {[%clk 0:01:46]} 3. Bc4 {[%clk 0:02:55]}  Nf6 {[%clk 0:01:44]} 4. d4 {[%clk 0:02:55]}  exd4 {[%clk 0:01:42]} 5. O-O {[%clk 0:02:54]}  Bc5 {[%clk 0:01:27]} 6. c3 {[%clk 0:02:52]}  d3 {[%clk 0:01:25]} 7. Bxd3 {[%clk 0:02:37]}  O-O {[%clk 0:01:22]} 8. Bg5 {[%clk 0:02:37]}  h6 {[%clk 0:01:22]} 9. Bh4 {[%clk 0:02:36]}  d6 {[%clk 0:01:20]} 10. Nbd2 {[%clk 0:02:35]}  Bg4 {[%clk 0:01:17]} 11. h3 {[%clk 0:02:35]}  Bh5 {[%clk 0:01:16]} 12. Qb3 {[%clk 0:02:31]}  Bb6 {[%clk 0:01:13]} 13. Rad1 {[%clk 0:02:27]}  g5 {[%clk 0:01:08]} 14. Bg3 {[%clk 0:02:21]}  g4 {[%clk 0:01:09]} 15. hxg4 {[%clk 0:02:13]}  Bxg4 {[%clk 0:01:04]} 16. Nc4 {[%clk 0:02:09]}  Nh5 {[%clk 0:01:03]} 17. Nxb6 {[%clk 0:01:47]}  axb6 {[%clk 0:01:01]} 18. Bh4 {[%clk 0:01:42]}  Qd7 {[%clk 0:00:57]} 19. Be2 {[%clk 0:01:24]}  Bxf3 {[%clk 0:00:58]} 20. Bxf3 {[%clk 0:01:24]}  Nf4 {[%clk 0:00:56]} 21. Bg3 {[%clk 0:01:21]}  Ng6 {[%clk 0:00:54]} 22. Rd5 {[%clk 0:01:04]}  Qe6 {[%clk 0:00:52]} 23. Rfd1 {[%clk 0:00:57]}  Nce5 {[%clk 0:00:50]} 24. Be2 {[%clk 0:00:49]}  Qf6 {[%clk 0:00:49]} 25. f3 {[%clk 0:00:46]}  Nf4 {[%clk 0:00:48]} 26. Bxf4 {[%clk 0:00:39]}  Qxf4 {[%clk 0:00:47]} 27. R5d2 {[%clk 0:00:33]}  h5 {[%clk 0:00:46]} 28. Qd5 {[%clk 0:00:31]}  h4 {[%clk 0:00:45]} 29. Qxb7 {[%clk 0:00:19]}  h3 {[%clk 0:00:44]} 30. Bf1 {[%clk 0:00:19]}  h2+ {[%clk 0:00:39]} 31. Kh1 {[%clk 0:00:19]}  Rxa2 {[%clk 0:00:37]} 32. Qxc7 {[%clk 0:00:17]}  Re8 {[%clk 0:00:21]} 33. Qxd6 {[%clk 0:00:17]}  Re6 {[%clk 0:00:17]} 34. Qb8+ {[%clk 0:00:16]}  Kg7 {[%clk 0:00:16]} 35. Rd8 {[%clk 0:00:17]}  Nxf3 {[%clk 0:00:09]} 36. Rg8+ {[%clk 0:00:17]}  Kf6 {[%clk 0:00:09]} 37. Qxf4+ {[%clk 0:00:16]}  Ke7 {[%clk 0:00:08]} 38. Qxf3 {[%clk 0:00:17]}  Rf6 {[%clk 0:00:03]} 39. Qg3 {[%clk 0:00:16]}  Rxb2 {[%clk 0:00:01]} 40. Qc7+ {[%clk 0:00:16]}  Ke6 {[%clk 0:00:01]} 41. Re8# {[%clk 0:00:16]} 1-0

[Event "January 2 Early 2024"]
[Site "https://www.chess.com"]
[Date "2024.01.02"]
[Round "6"]
[White "Montano Vicente, Guadalupe"]
[Black "Leisch, Lukas"]
[Result "1/2-1/2"]
[Board "180"]
[TimeControl "180+1"]
[WhiteFideId "5181399"]
[BlackFideId "1632094"]
[WhiteElo "2178"]
[BlackElo "2518"]
[WhiteTeam "MEX"]
[BlackTeam "AUT"]
[WhiteClock "0:01:07"]
[BlackClock "0:00:03"]

1. d4 {[%clk 0:03:00]}  e6 {[%clk 0:02:56]} 2. c4 {[%clk 0:02:59]}  d5 {[%clk 0:02:56]} 3. Nf3 {[%clk 0:02:59]}  c6 {[%clk 0:02:55]} 4. Nc3 {[%clk 0:02:57]}  Nf6 {[%clk 0:02:51]} 5. cxd5 {[%clk 0:02:57]}  exd5 {[%clk 0:02:51]} 6. Bg5 {[%clk 0:02:57]}  Be7 {[%clk 0:02:44]} 7. e3 {[%clk 0:02:55]}  h6 {[%clk 0:02:40]} 8. Bh4 {[%clk 0:02:54]}  Bf5 {[%clk 0:02:39]} 9. Bd3 {[%clk 0:02:52]}  Bxd3 {[%clk 0:02:38]} 10. Qxd3 {[%clk 0:02:51]}  Nbd7 {[%clk 0:02:36]} 11. O-O {[%clk 0:02:50]}  O-O {[%clk 0:02:35]} 12. h3 {[%clk 0:02:34]}  Re8 {[%clk 0:02:32]} 13. Bg3 {[%clk 0:02:34]}  Bf8 {[%clk 0:02:26]} 14. a3 {[%clk 0:02:24]}  Ne4 {[%clk 0:02:24]} 15. Be5 {[%clk 0:02:21]}  Nxc3 {[%clk 0:01:47]} 16. Qxc3 {[%clk 0:02:17]}  Nxe5 {[%clk 0:01:47]} 17. Nxe5 {[%clk 0:02:15]}  Bd6 {[%clk 0:01:48]} 18. Nf3 {[%clk 0:02:12]}  a5 {[%clk 0:01:39]} 19. Rac1 {[%clk 0:02:11]}  a4 {[%clk 0:01:35]} 20. Qd3 {[%clk 0:02:07]}  Qe7 {[%clk 0:01:28]} 21. Qf5 {[%clk 0:02:04]}  Ra5 {[%clk 0:01:22]} 22. Rc2 {[%clk 0:02:00]}  Rb5 {[%clk 0:01:21]} 23. Rfc1 {[%clk 0:01:59]}  Bb8 {[%clk 0:01:20]} 24. Qd3 {[%clk 0:01:54]}  Rb3 {[%clk 0:01:18]} 25. Qd2 {[%clk 0:01:52]}  Qc7 {[%clk 0:01:17]} 26. Rc3 {[%clk 0:01:49]}  Rb5 {[%clk 0:01:16]} 27. Qc2 {[%clk 0:01:49]}  Qa5 {[%clk 0:01:12]} 28. Rc5 {[%clk 0:01:49]}  Rxc5 {[%clk 0:01:07]} 29. Qxc5 {[%clk 0:01:48]}  Qxc5 {[%clk 0:00:58]} 30. Rxc5 {[%clk 0:01:46]}  Bc7 {[%clk 0:00:55]} 31. Nd2 {[%clk 0:01:44]}  Bb6 {[%clk 0:00:50]} 32. Rc2 {[%clk 0:01:42]}  Ra8 {[%clk 0:00:43]} 33. Nb1 {[%clk 0:01:42]}  Ba5 {[%clk 0:00:43]} 34. Nc3 {[%clk 0:01:42]}  Bxc3 {[%clk 0:00:41]} 35. Rxc3 {[%clk 0:01:42]}  Kf8 {[%clk 0:00:35]} 36. Kf1 {[%clk 0:01:42]}  Ke7 {[%clk 0:00:35]} 37. Ke2 {[%clk 0:01:43]}  Kd6 {[%clk 0:00:36]} 38. Kd3 {[%clk 0:01:42]}  Re8 {[%clk 0:00:34]} 39. Rc1 {[%clk 0:01:34]}  Re6 {[%clk 0:00:32]} 40. Rb1 {[%clk 0:01:34]}  Rg6 {[%clk 0:00:32]} 41. g3 {[%clk 0:01:33]}  Rf6 {[%clk 0:00:32]} 42. f4 {[%clk 0:01:32]}  Re6 {[%clk 0:00:29]} 43. g4 {[%clk 0:01:31]}  Re4 {[%clk 0:00:21]} 44. b4 {[%clk 0:01:27]}  axb3 {[%clk 0:00:15]} 45. Rxb3 {[%clk 0:01:25]}  Kc7 {[%clk 0:00:16]} 46. a4 {[%clk 0:01:24]}  Re8 {[%clk 0:00:16]} 47. Rb4 {[%clk 0:01:23]}  Ra8 {[%clk 0:00:16]} 48. e4 {[%clk 0:01:22]}  dxe4+ {[%clk 0:00:17]} 49. Kxe4 {[%clk 0:01:23]}  Ra5 {[%clk 0:00:17]} 50. h4 {[%clk 0:01:22]}  h5 {[%clk 0:00:17]} 51. g5 {[%clk 0:01:22]}  g6 {[%clk 0:00:17]} 52. Rc4 {[%clk 0:01:21]}  Kd6 {[%clk 0:00:17]} 53. Rb4 {[%clk 0:01:21]}  Kc7 {[%clk 0:00:17]} 54. Rc4 {[%clk 0:01:21]}  b6 {[%clk 0:00:16]} 55. Rb4 {[%clk 0:01:21]}  Rd5 {[%clk 0:00:14]} 56. Rc4 {[%clk 0:01:21]}  Kd6 {[%clk 0:00:10]} 57. Rb4 {[%clk 0:01:21]}  b5 {[%clk 0:00:10]} 58. axb5 {[%clk 0:01:19]}  Rxb5 {[%clk 0:00:11]} 59. Ra4 {[%clk 0:01:18]}  Rb7 {[%clk 0:00:10]} 60. Ra8 {[%clk 0:01:17]}  Re7+ {[%clk 0:00:10]} 61. Kd3 {[%clk 0:01:16]}  Rb7 {[%clk 0:00:09]} 62. Rd8+ {[%clk 0:01:16]}  Ke6 {[%clk 0:00:10]} 63. Rc8 {[%clk 0:01:14]}  Kf5 {[%clk 0:00:08]} 64. Rxc6 {[%clk 0:01:13]}  Kxf4 {[%clk 0:00:09]} 65. Rc4 {[%clk 0:01:12]}  Rd7 {[%clk 0:00:07]} 66. Kc3 {[%clk 0:01:09]}  Ke4 {[%clk 0:00:04]} 67. Rb4 {[%clk 0:01:08]}  Rc7+ {[%clk 0:00:03]} 68. Rc4 {[%clk 0:01:08]}  Rd7 {[%clk 0:00:02]} 69. Rb4 {[%clk 0:01:08]}  Kd5 {[%clk 0:00:02]} 70. Rb5+ {[%clk 0:01:07]}  Ke4 {[%clk 0:00:03]} 71. Rb4 {[%clk 0:01:07]} 1/2-1/2